[Event "FIDE World Rapid Chess Championship 2021"]
[White "Toczek, Grzegorz"]
[Black "Shevchenko, Kirill"]
[WhiteFideId "1106457"]
[BlackFideId "14129574"]
[WhiteElo "2220"]
[BlackElo "2508"]
[Result "0-1"]
[Round "03"]
[TimeControl "900+10"]
[Date "2021.12.26"]
[WhiteClock "0:00:08"]
[BlackClock "0:00:28"]

1. e4 {[%clk 0:15:36]}  c5 {[%clk 0:15:26]} 2. Nc3 {[%clk 0:15:36]}  Nc6 {[%clk 0:15:26]} 3. Nge2 {[%clk 0:15:36]}  Nd4 {[%clk 0:15:26]} 4. b3 {[%clk 0:15:24]}  g6 {[%clk 0:15:07]} 5. Nxd4 {[%clk 0:15:24]}  cxd4 {[%clk 0:15:07]} 6. Ne2 {[%clk 0:15:24]}  Bg7 {[%clk 0:15:07]} 7. Bb2 {[%clk 0:15:24]}  e5 {[%clk 0:13:20]} 8. c3 {[%clk 0:15:06]}  dxc3 {[%clk 0:13:20]} 9. dxc3 {[%clk 0:15:06]}  Nf6 {[%clk 0:13:20]} 10. Ng3 {[%clk 0:14:56]}  O-O {[%clk 0:12:54]} 11. c4 {[%clk 0:13:57]}  h5 {[%clk 0:12:42]} 12. Bd3 {[%clk 0:13:19]}  h4 {[%clk 0:12:39]} 13. Nf1 {[%clk 0:12:17]}  b5 {[%clk 0:11:44]} 14. cxb5 {[%clk 0:10:28]}  h3 {[%clk 0:10:57]} 15. gxh3 {[%clk 0:07:40]}  d5 {[%clk 0:11:04]} 16. Nd2 {[%clk 0:05:09]}  Bb7 {[%clk 0:11:07]} 17. Qe2 {[%clk 0:05:09]}  Nh5 {[%clk 0:09:32]} 18. O-O-O {[%clk 0:04:40]}  Nf4 {[%clk 0:09:17]} 19. Qf1 {[%clk 0:04:40]}  Qa5 {[%clk 0:09:22]} 20. Kb1 {[%clk 0:03:43]}  a6 {[%clk 0:09:22]} 21. b6 {[%clk 0:03:51]}  Qxb6 {[%clk 0:06:43]} 22. exd5 {[%clk 0:02:38]}  Bxd5 {[%clk 0:06:43]} 23. Be4 {[%clk 0:02:38]}  Rad8 {[%clk 0:05:49]} 24. Bxd5 {[%clk 0:02:42]}  Rxd5 {[%clk 0:04:50]} 25. Nc4 {[%clk 0:02:42]}  Qe6 {[%clk 0:04:50]} 26. Ne3 {[%clk 0:02:00]}  Rd4 {[%clk 0:03:53]} 27. Nc2 {[%clk 0:02:00]}  Qf5 {[%clk 0:03:31]} 28. Qxa6 {[%clk 0:01:34]}  Rc8 {[%clk 0:02:40]} 29. Rxd4 {[%clk 0:01:34]}  exd4 {[%clk 0:02:47]} 30. Rc1 {[%clk 0:00:20]}  d3 {[%clk 0:01:07]} 31. Nd4 {[%clk 0:00:29]}  Rxc1+ {[%clk 0:01:07]} 32. Kxc1 {[%clk 0:00:29]}  Qe4 {[%clk 0:00:28]} 33. Qc8+ {[%clk 0:00:08]}  Kh7 {[%clk 0:00:28]} 34. Qg4 {[%clk 0:00:08]}  Bxd4 {[%clk 0:00:28]} 35. Qh4+ {[%clk 0:00:08]}  Kg7 {[%clk 0:00:28]} 36. Bxd4+ {[%clk 0:00:08]}  Qxd4 {[%clk 0:00:28]} 37. Kd2 {[%clk 0:00:08]}  Qb2+ {[%clk 0:00:28]} 38. Ke3 {[%clk 0:00:08]}  Ng2+ {[%clk 0:00:28]} 0-1


[Site "http://www.Chess.com"]

[Event "FIDE World Rapid Chess Championship 2021"]
[White "Kadric, Denis"]
[Black "Klimkowski, Jan"]
[WhiteFideId "14403803"]
[BlackFideId "21856222"]
[WhiteElo "2542"]
[BlackElo "2211"]
[Result "1/2-1/2"]
[Round "03"]
[TimeControl "900+10"]
[Date "2021.12.26"]
[WhiteClock "0:00:22"]
[BlackClock "0:00:17"]

1. e4 {[%clk 0:15:24]}  d6 {[%clk 0:15:28]} 2. d4 {[%clk 0:15:24]}  Nf6 {[%clk 0:15:28]} 3. Nc3 {[%clk 0:15:24]}  e5 {[%clk 0:15:28]} 4. Nf3 {[%clk 0:15:24]}  Nbd7 {[%clk 0:15:28]} 5. Bc4 {[%clk 0:15:24]}  Be7 {[%clk 0:15:28]} 6. O-O {[%clk 0:15:24]}  O-O {[%clk 0:15:28]} 7. a4 {[%clk 0:15:40]}  c6 {[%clk 0:16:20]} 8. h3 {[%clk 0:15:40]}  Qc7 {[%clk 0:16:20]} 9. Be3 {[%clk 0:15:40]}  h6 {[%clk 0:16:20]} 10. a5 {[%clk 0:15:40]}  Re8 {[%clk 0:16:20]} 11. Re1 {[%clk 0:15:40]}  Nf8 {[%clk 0:16:20]} 12. Bb3 {[%clk 0:14:23]}  Ng6 {[%clk 0:16:34]} 13. d5 {[%clk 0:13:47]}  c5 {[%clk 0:16:37]} 14. Nd2 {[%clk 0:12:53]}  Nh7 {[%clk 0:14:58]} 15. a6 {[%clk 0:12:46]}  bxa6 {[%clk 0:14:58]} 16. Bc4 {[%clk 0:12:46]}  Bg5 {[%clk 0:14:32]} 17. Bxa6 {[%clk 0:12:02]}  Bxe3 {[%clk 0:13:33]} 18. Rxe3 {[%clk 0:12:02]}  Nf4 {[%clk 0:13:33]} 19. Nc4 {[%clk 0:11:51]}  Bd7 {[%clk 0:11:50]} 20. Nb5 {[%clk 0:11:36]}  Bxb5 {[%clk 0:11:50]} 21. Bxb5 {[%clk 0:11:36]}  Rf8 {[%clk 0:11:41]} 22. Bc6 {[%clk 0:10:51]}  Rad8 {[%clk 0:11:41]} 23. Rea3 {[%clk 0:10:51]}  Qe7 {[%clk 0:11:12]} 24. Rxa7 {[%clk 0:10:41]}  Qf6 {[%clk 0:11:12]} 25. Qg4 {[%clk 0:10:17]}  h5 {[%clk 0:11:08]} 26. Qf3 {[%clk 0:07:52]}  Ng5 {[%clk 0:09:58]} 27. Qe3 {[%clk 0:07:52]}  Qg6 {[%clk 0:09:38]} 28. Kh2 {[%clk 0:05:28]}  h4 {[%clk 0:09:02]} 29. Rg1 {[%clk 0:05:16]}  Nxe4 {[%clk 0:08:26]} 30. g3 {[%clk 0:04:33]}  hxg3+ {[%clk 0:08:26]} 31. fxg3 {[%clk 0:04:33]}  Nh5 {[%clk 0:08:26]} 32. g4 {[%clk 0:04:36]}  Nf4 {[%clk 0:08:14]} 33. Ra3 {[%clk 0:04:36]}  Ng5 {[%clk 0:07:39]} 34. Qf2 {[%clk 0:03:28]}  Qh7 {[%clk 0:07:31]} 35. h4 {[%clk 0:03:06]}  f5 {[%clk 0:05:39]} 36. Qe1 {[%clk 0:02:52]}  fxg4 {[%clk 0:05:42]} 37. Rxg4 {[%clk 0:01:45]}  Qxc2+ {[%clk 0:05:42]} 38. Nd2 {[%clk 0:01:45]}  Ne4 {[%clk 0:04:07]} 39. Ra7 {[%clk 0:02:02]}  g6 {[%clk 0:03:48]} 40. Qxe4 {[%clk 0:01:51]}  Qxd2+ {[%clk 0:03:48]} 41. Kg3 {[%clk 0:01:51]}  Rf6 {[%clk 0:02:20]} 42. Bd7 {[%clk 0:01:27]}  Rdf8 {[%clk 0:02:20]} 43. Be6+ {[%clk 0:01:27]}  Kh8 {[%clk 0:02:20]} 44. h5 {[%clk 0:01:27]}  Nxh5+ {[%clk 0:02:19]} 45. Kh4 {[%clk 0:00:44]}  Rxe6 {[%clk 0:02:19]} 46. dxe6 {[%clk 0:00:53]}  Qf2+ {[%clk 0:02:03]} 47. Kg5 {[%clk 0:00:53]}  Qd2+ {[%clk 0:02:03]} 48. Kh4 {[%clk 0:00:53]}  Qf2+ {[%clk 0:02:03]} 49. Kg5 {[%clk 0:00:53]}  Qd2+ {[%clk 0:00:45]} 50. Kh4 {[%clk 0:00:58]}  Qf2+ {[%clk 0:00:45]} 51. Kg5 {[%clk 0:01:06]}  Qd2+ {[%clk 0:00:17]} 52. Kh4 {[%clk 0:00:22]}  Qf2+ {[%clk 0:00:17]} 53. Kg5 {[%clk 0:00:22]}  Qf6+ {[%clk 0:00:17]} 54. Kh6 {[%clk 0:00:22]} 1/2-1/2


[Site "http://www.Chess.com"]

[Event "FIDE World Rapid Chess Championship 2021"]
[White "Dragnev, Valentin"]
[Black "Gagunashvili, Merab"]
[WhiteFideId "1634852"]
[BlackFideId "13601652"]
[WhiteElo "2409"]
[BlackElo "2538"]
[Result "1/2-1/2"]
[Round "03"]
[TimeControl "900+10"]
[Date "2021.12.26"]
[WhiteClock "0:02:21"]
[BlackClock "0:01:02"]

1. d4 {[%clk 0:15:25]}  Nf6 {[%clk 0:15:18]} 2. c4 {[%clk 0:15:25]}  e6 {[%clk 0:15:18]} 3. Nc3 {[%clk 0:15:25]}  Bb4 {[%clk 0:15:18]} 4. Qc2 {[%clk 0:15:25]}  O-O {[%clk 0:15:18]} 5. a3 {[%clk 0:15:25]}  Bxc3+ {[%clk 0:15:18]} 6. Qxc3 {[%clk 0:15:25]}  d5 {[%clk 0:15:53]} 7. Bg5 {[%clk 0:15:41]}  c5 {[%clk 0:15:53]} 8. cxd5 {[%clk 0:15:41]}  cxd4 {[%clk 0:15:28]} 9. Qxd4 {[%clk 0:15:15]}  Nc6 {[%clk 0:13:44]} 10. Qh4 {[%clk 0:15:33]}  Qa5+ {[%clk 0:13:44]} 11. b4 {[%clk 0:15:33]}  Qxd5 {[%clk 0:13:44]} 12. Bxf6 {[%clk 0:15:33]}  gxf6 {[%clk 0:13:44]} 13. Rd1 {[%clk 0:14:16]}  Qg5 {[%clk 0:11:03]} 14. Qg3 {[%clk 0:12:34]}  e5 {[%clk 0:09:24]} 15. Nf3 {[%clk 0:11:04]}  Qg7 {[%clk 0:06:25]} 16. e3 {[%clk 0:11:05]}  Bg4 {[%clk 0:05:50]} 17. Be2 {[%clk 0:10:37]}  Rfd8 {[%clk 0:05:50]} 18. Nd2 {[%clk 0:09:58]}  Bf5 {[%clk 0:05:18]} 19. Qxg7+ {[%clk 0:09:03]}  Kxg7 {[%clk 0:04:21]} 20. g4 {[%clk 0:09:03]}  Be6 {[%clk 0:04:21]} 21. Bf3 {[%clk 0:07:49]}  Rd3 {[%clk 0:04:16]} 22. Ra1 {[%clk 0:06:32]}  Rad8 {[%clk 0:03:54]} 23. Nf1 {[%clk 0:06:32]}  Nd4 {[%clk 0:03:34]} 24. exd4 {[%clk 0:05:09]}  Rxf3 {[%clk 0:03:34]} 25. dxe5 {[%clk 0:05:09]}  fxe5 {[%clk 0:03:34]} 26. Ne3 {[%clk 0:05:09]}  Rf4 {[%clk 0:03:34]} 27. Rg1 {[%clk 0:05:27]}  Rd3 {[%clk 0:02:20]} 28. Rg3 {[%clk 0:05:27]}  Rb3 {[%clk 0:01:30]} 29. Nf5+ {[%clk 0:04:53]}  Kf6 {[%clk 0:01:30]} 30. Rxb3 {[%clk 0:04:14]}  Bxb3 {[%clk 0:01:50]} 31. Ne3 {[%clk 0:04:14]}  Be6 {[%clk 0:01:50]} 32. Rc1 {[%clk 0:04:14]}  a5 {[%clk 0:01:50]} 33. bxa5 {[%clk 0:04:14]}  Ra4 {[%clk 0:01:50]} 34. Rc5 {[%clk 0:04:23]}  Rxa3 {[%clk 0:00:49]} 35. h4 {[%clk 0:03:25]}  h6 {[%clk 0:01:04]} 36. Ke2 {[%clk 0:03:25]}  Rb3 {[%clk 0:01:04]} 37. Kf3 {[%clk 0:03:25]}  b6 {[%clk 0:01:04]} 38. axb6 {[%clk 0:03:25]}  Rxb6 {[%clk 0:01:04]} 39. Kg3 {[%clk 0:03:25]}  Ra6 {[%clk 0:01:04]} 40. Rc3 {[%clk 0:03:03]}  Rb6 {[%clk 0:01:12]} 41. Ra3 {[%clk 0:03:03]}  Rc6 {[%clk 0:01:12]} 42. Ra8 {[%clk 0:03:03]}  Rd6 {[%clk 0:01:17]} 43. Rg8 {[%clk 0:02:49]}  Rd4 {[%clk 0:01:17]} 44. h5 {[%clk 0:02:49]}  Ra4 {[%clk 0:01:17]} 45. f3 {[%clk 0:02:49]}  Ra1 {[%clk 0:01:17]} 46. Ng2 {[%clk 0:02:49]}  Ra3 {[%clk 0:01:23]} 47. g5+ {[%clk 0:02:12]}  hxg5 {[%clk 0:01:23]} 48. h6 {[%clk 0:02:12]}  Bf5 {[%clk 0:01:23]} 49. Kf2 {[%clk 0:02:12]}  Ra2+ {[%clk 0:01:23]} 50. Kg3 {[%clk 0:02:12]}  Ra3 {[%clk 0:01:23]} 51. Kf2 {[%clk 0:02:12]}  Ra1 {[%clk 0:01:10]} 52. Ne3 {[%clk 0:02:29]}  Rh1 {[%clk 0:01:10]} 53. Nd5+ {[%clk 0:02:29]}  Ke6 {[%clk 0:01:10]} 54. Nc7+ {[%clk 0:02:29]}  Kd7 {[%clk 0:01:10]} 55. Rxg5 {[%clk 0:02:21]}  Kxc7 {[%clk 0:01:02]} 56. Rxf5 {[%clk 0:02:21]}  Rxh6 {[%clk 0:01:02]} 57. Rxf7+ {[%clk 0:02:21]} 1/2-1/2


[Site "http://www.Chess.com"]

[Event "FIDE World Rapid Chess Championship 2021"]
[White "Zilka, Stepan"]
[Black "Holm, Kristian Stuvik"]
[WhiteFideId "315303"]
[BlackFideId "1508083"]
[WhiteElo "2474"]
[BlackElo "2409"]
[Result "1/2-1/2"]
[Round "03"]
[TimeControl "900+10"]
[Date "2021.12.26"]
[WhiteClock "0:04:18"]
[BlackClock "0:01:30"]

1. d4 {[%clk 0:15:35]}  Nf6 {[%clk 0:15:26]} 2. Nf3 {[%clk 0:15:35]}  d5 {[%clk 0:15:26]} 3. Bf4 {[%clk 0:15:35]}  c5 {[%clk 0:14:47]} 4. e3 {[%clk 0:15:44]}  Nc6 {[%clk 0:14:47]} 5. Nbd2 {[%clk 0:15:44]}  e6 {[%clk 0:14:47]} 6. c3 {[%clk 0:15:44]}  Be7 {[%clk 0:14:47]} 7. Ne5 {[%clk 0:16:00]}  Nd7 {[%clk 0:13:23]} 8. Nxd7 {[%clk 0:15:11]}  Bxd7 {[%clk 0:13:29]} 9. Be2 {[%clk 0:15:11]}  Qb6 {[%clk 0:13:29]} 10. Qb3 {[%clk 0:14:36]}  O-O {[%clk 0:12:09]} 11. O-O {[%clk 0:14:32]}  Rfc8 {[%clk 0:10:56]} 12. Rac1 {[%clk 0:13:37]}  Na5 {[%clk 0:10:49]} 13. Qxb6 {[%clk 0:12:32]}  axb6 {[%clk 0:10:19]} 14. a3 {[%clk 0:11:09]}  Ba4 {[%clk 0:10:19]} 15. h3 {[%clk 0:11:17]}  h6 {[%clk 0:06:51]} 16. Rfe1 {[%clk 0:10:59]}  Nb3 {[%clk 0:06:08]} 17. Nxb3 {[%clk 0:10:58]}  Bxb3 {[%clk 0:06:08]} 18. Bf3 {[%clk 0:10:58]}  Kf8 {[%clk 0:06:08]} 19. Be5 {[%clk 0:10:34]}  b5 {[%clk 0:04:49]} 20. dxc5 {[%clk 0:09:40]}  Bxc5 {[%clk 0:04:49]} 21. e4 {[%clk 0:09:42]}  f6 {[%clk 0:02:46]} 22. Bd4 {[%clk 0:07:37]}  Bxd4 {[%clk 0:02:46]} 23. cxd4 {[%clk 0:07:37]}  Kf7 {[%clk 0:02:46]} 24. g3 {[%clk 0:07:46]}  Rc6 {[%clk 0:02:11]} 25. exd5 {[%clk 0:05:13]}  exd5 {[%clk 0:02:00]} 26. Rc2 {[%clk 0:04:18]}  Rc5 {[%clk 0:01:30]} 27. Rxc5 {[%clk 0:04:18]} 1/2-1/2


[Site "http://www.Chess.com"]

[Event "FIDE World Rapid Chess Championship 2021"]
[White "Kolosowski, Mateusz"]
[Black "Carlsson, Pontus"]
[WhiteFideId "1129708"]
[BlackFideId "1705814"]
[WhiteElo "2371"]
[BlackElo "2436"]
[Result "1-0"]
[Round "03"]
[TimeControl "900+10"]
[Date "2021.12.26"]
[WhiteClock "0:03:16"]
[BlackClock "0:00:18"]

1. e4 {[%clk 0:15:24]}  c5 {[%clk 0:15:26]} 2. Nf3 {[%clk 0:15:24]}  d6 {[%clk 0:15:26]} 3. Bb5+ {[%clk 0:15:24]}  Bd7 {[%clk 0:15:26]} 4. Bxd7+ {[%clk 0:15:24]}  Qxd7 {[%clk 0:15:26]} 5. O-O {[%clk 0:15:43]}  Nf6 {[%clk 0:15:35]} 6. Qe2 {[%clk 0:15:43]}  Nc6 {[%clk 0:15:35]} 7. c3 {[%clk 0:15:43]}  e6 {[%clk 0:15:35]} 8. d4 {[%clk 0:15:43]}  cxd4 {[%clk 0:15:35]} 9. cxd4 {[%clk 0:15:43]}  d5 {[%clk 0:15:35]} 10. e5 {[%clk 0:15:43]}  Ng8 {[%clk 0:15:35]} 11. Nc3 {[%clk 0:15:43]}  Nge7 {[%clk 0:15:35]} 12. Rd1 {[%clk 0:15:42]}  Nc8 {[%clk 0:15:07]} 13. h4 {[%clk 0:15:42]}  Nb6 {[%clk 0:15:07]} 14. h5 {[%clk 0:15:42]}  h6 {[%clk 0:15:07]} 15. a4 {[%clk 0:15:16]}  Bb4 {[%clk 0:13:35]} 16. Rd3 {[%clk 0:14:30]}  Na5 {[%clk 0:13:01]} 17. Nb5 {[%clk 0:13:21]}  a6 {[%clk 0:11:05]} 18. Nd6+ {[%clk 0:11:31]}  Bxd6 {[%clk 0:11:05]} 19. exd6 {[%clk 0:11:31]}  Qxd6 {[%clk 0:11:05]} 20. b3 {[%clk 0:11:47]}  Nc6 {[%clk 0:09:05]} 21. Ba3 {[%clk 0:11:31]}  Qf4 {[%clk 0:08:19]} 22. Rc1 {[%clk 0:10:53]}  Nd7 {[%clk 0:06:03]} 23. Rdc3 {[%clk 0:10:19]}  Qg4 {[%clk 0:02:07]} 24. Rxc6 {[%clk 0:08:42]}  bxc6 {[%clk 0:00:00]} 25. Rxc6 {[%clk 0:08:42]}  Rd8 {[%clk 0:01:33]} 26. Qxa6 {[%clk 0:05:41]}  Qf5 {[%clk 0:01:08]} 27. Rc8 {[%clk 0:04:18]}  Qf6 {[%clk 0:00:37]} 28. Ne5 {[%clk 0:03:16]}  Nb6 {[%clk 0:00:18]} 29. Qxb6 {[%clk 0:03:16]}  Rxc8 {[%clk 0:00:18]} 30. Qb5+ {[%clk 0:03:16]} 1-0


[Site "http://www.Chess.com"]

[Event "FIDE World Rapid Chess Championship 2021"]
[White "Aziz, Husain"]
[Black "Baum, Jonasz"]
[WhiteFideId "12100293"]
[BlackFideId "1195360"]
[WhiteElo "2430"]
[BlackElo "2343"]
[Result "0-1"]
[Round "03"]
[TimeControl "900+10"]
[Date "2021.12.26"]
[WhiteClock "0:00:16"]
[BlackClock "0:03:44"]

1. e4 {[%clk 0:15:18]}  c6 {[%clk 0:15:19]} 2. d4 {[%clk 0:15:18]}  d5 {[%clk 0:15:19]} 3. e5 {[%clk 0:15:18]}  c5 {[%clk 0:16:03]} 4. dxc5 {[%clk 0:15:27]}  e6 {[%clk 0:16:03]} 5. a3 {[%clk 0:15:27]}  Bxc5 {[%clk 0:16:03]} 6. Nf3 {[%clk 0:15:27]}  f6 {[%clk 0:16:03]} 7. b4 {[%clk 0:15:27]}  Be7 {[%clk 0:16:03]} 8. Bb2 {[%clk 0:15:27]}  a5 {[%clk 0:16:03]} 9. b5 {[%clk 0:15:27]}  Nd7 {[%clk 0:16:03]} 10. Nbd2 {[%clk 0:15:27]}  Nh6 {[%clk 0:16:20]} 11. Bd3 {[%clk 0:14:34]}  Nf7 {[%clk 0:15:33]} 12. exf6 {[%clk 0:14:17]}  Bxf6 {[%clk 0:15:33]} 13. Bxf6 {[%clk 0:14:17]}  Qxf6 {[%clk 0:15:33]} 14. O-O {[%clk 0:13:16]}  e5 {[%clk 0:15:43]} 15. c4 {[%clk 0:13:16]}  e4 {[%clk 0:13:56]} 16. Bxe4 {[%clk 0:11:19]}  dxe4 {[%clk 0:13:56]} 17. Nxe4 {[%clk 0:11:19]}  Qh6 {[%clk 0:13:56]} 18. c5 {[%clk 0:11:19]}  O-O {[%clk 0:12:51]} 19. Rc1 {[%clk 0:11:15]}  Nf6 {[%clk 0:12:49]} 20. Nd6 {[%clk 0:09:54]}  Bg4 {[%clk 0:12:36]} 21. Nxb7 {[%clk 0:08:21]}  Ng5 {[%clk 0:12:36]} 22. Qb3+ {[%clk 0:08:14]}  Be6 {[%clk 0:11:18]} 23. Qe3 {[%clk 0:07:16]}  Nxf3+ {[%clk 0:11:21]} 24. Qxf3 {[%clk 0:07:16]}  Bd5 {[%clk 0:11:19]} 25. Qg3 {[%clk 0:05:52]}  Bxb7 {[%clk 0:11:15]} 26. c6 {[%clk 0:05:24]}  Bc8 {[%clk 0:10:50]} 27. b6 {[%clk 0:05:01]}  Ba6 {[%clk 0:08:56]} 28. Rfe1 {[%clk 0:05:01]}  Rae8 {[%clk 0:08:56]} 29. b7 {[%clk 0:04:15]}  Nd5 {[%clk 0:08:53]} 30. Red1 {[%clk 0:03:11]}  Nf4 {[%clk 0:06:15]} 31. Kh1 {[%clk 0:01:17]}  Nd3 {[%clk 0:03:44]} 32. c7 {[%clk 0:01:17]}  Nxf2+ {[%clk 0:03:44]} 33. Qxf2 {[%clk 0:00:16]}  Bxb7 {[%clk 0:03:44]} 0-1


[Site "http://www.Chess.com"]

[Event "FIDE World Rapid Chess Championship 2021"]
[White "Nevednichy, Vladislav"]
[Black "Asadli, Vugar"]
[WhiteFideId "1205730"]
[BlackFideId "13405764"]
[WhiteElo "2425"]
[BlackElo "2309"]
[Result "0-1"]
[Round "03"]
[TimeControl "900+10"]
[Date "2021.12.26"]
[WhiteClock "0:00:14"]
[BlackClock "0:00:28"]

1. d4 {[%clk 0:15:26]}  Nf6 {[%clk 0:15:27]} 2. c4 {[%clk 0:15:26]}  e6 {[%clk 0:15:27]} 3. Nf3 {[%clk 0:15:26]}  b6 {[%clk 0:15:27]} 4. g3 {[%clk 0:15:26]}  Bb7 {[%clk 0:15:27]} 5. Bg2 {[%clk 0:15:26]}  g6 {[%clk 0:15:27]} 6. O-O {[%clk 0:15:20]}  Bg7 {[%clk 0:15:59]} 7. Nc3 {[%clk 0:15:20]}  Ne4 {[%clk 0:15:59]} 8. Bd2 {[%clk 0:15:20]}  O-O {[%clk 0:15:57]} 9. Nxe4 {[%clk 0:14:24]}  Bxe4 {[%clk 0:13:59]} 10. Bc3 {[%clk 0:14:24]}  Nc6 {[%clk 0:14:06]} 11. Qa4 {[%clk 0:10:27]}  Ne7 {[%clk 0:07:32]} 12. Rac1 {[%clk 0:09:15]}  d6 {[%clk 0:05:54]} 13. Rfd1 {[%clk 0:09:15]}  Qc8 {[%clk 0:05:54]} 14. Bh3 {[%clk 0:08:22]}  Qb7 {[%clk 0:02:44]} 15. Nd2 {[%clk 0:07:03]}  Bc6 {[%clk 0:02:44]} 16. Qc2 {[%clk 0:07:03]}  Rad8 {[%clk 0:02:44]} 17. d5 {[%clk 0:06:33]}  Bd7 {[%clk 0:02:49]} 18. Bxg7 {[%clk 0:05:22]}  Kxg7 {[%clk 0:02:52]} 19. dxe6 {[%clk 0:05:22]}  Bxe6 {[%clk 0:02:59]} 20. Qc3+ {[%clk 0:04:03]}  Kg8 {[%clk 0:02:07]} 21. Bg2 {[%clk 0:03:35]}  d5 {[%clk 0:02:07]} 22. cxd5 {[%clk 0:03:44]}  Bxd5 {[%clk 0:01:09]} 23. e4 {[%clk 0:02:35]}  Bc6 {[%clk 0:01:09]} 24. Qf6 {[%clk 0:02:09]}  Rfe8 {[%clk 0:00:33]} 25. Nf3 {[%clk 0:02:09]}  Rxd1+ {[%clk 0:00:33]} 26. Rxd1 {[%clk 0:02:09]}  Nf5 {[%clk 0:00:33]} 27. Ne5 {[%clk 0:01:45]}  Nd6 {[%clk 0:00:19]} 28. Nxc6 {[%clk 0:01:45]}  Qxc6 {[%clk 0:00:19]} 29. e5 {[%clk 0:01:45]}  Qc2 {[%clk 0:00:23]} 30. Re1 {[%clk 0:00:43]}  Qxb2 {[%clk 0:00:23]} 31. Qf4 {[%clk 0:00:43]}  Qc3 {[%clk 0:00:22]} 32. Re3 {[%clk 0:00:16]}  Qc1+ {[%clk 0:00:22]} 33. Bf1 {[%clk 0:00:16]}  Nf5 {[%clk 0:00:22]} 34. e6 {[%clk 0:00:16]}  fxe6 {[%clk 0:00:22]} 35. Qa4 {[%clk 0:00:16]}  c6 {[%clk 0:00:22]} 36. Rd3 {[%clk 0:00:16]}  a5 {[%clk 0:00:22]} 37. Rd7 {[%clk 0:00:16]}  Re7 {[%clk 0:00:24]} 38. Rd8+ {[%clk 0:00:34]}  Kg7 {[%clk 0:00:24]} 39. Qb3 {[%clk 0:00:34]}  b5 {[%clk 0:00:24]} 40. Rd1 {[%clk 0:00:34]}  Qc5 {[%clk 0:00:24]} 41. Qd3 {[%clk 0:00:14]}  e5 {[%clk 0:00:17]} 42. Qd8 {[%clk 0:00:14]}  Nd4 {[%clk 0:00:17]} 43. Qxa5 {[%clk 0:00:14]}  Rf7 {[%clk 0:00:17]} 44. Bg2 {[%clk 0:00:14]}  Rxf2 {[%clk 0:00:17]} 45. Kh1 {[%clk 0:00:14]}  Qc2 {[%clk 0:00:10]} 46. Qc7+ {[%clk 0:00:23]}  Kh6 {[%clk 0:00:10]} 47. Rg1 {[%clk 0:00:23]}  Nf3 {[%clk 0:00:10]} 48. Qe7 {[%clk 0:00:23]}  Nxg1 {[%clk 0:00:12]} 49. Qh4+ {[%clk 0:00:27]}  Kg7 {[%clk 0:00:12]} 50. Qe7+ {[%clk 0:00:27]}  Rf7 {[%clk 0:00:12]} 51. Qxe5+ {[%clk 0:00:18]}  Kf8 {[%clk 0:00:12]} 52. Qb8+ {[%clk 0:00:18]}  Ke7 {[%clk 0:00:12]} 53. Qc7+ {[%clk 0:00:18]}  Ke6 {[%clk 0:00:12]} 54. Bd5+ {[%clk 0:00:18]}  Kxd5 {[%clk 0:00:12]} 55. Qxf7+ {[%clk 0:00:18]}  Kc5 {[%clk 0:00:12]} 56. Kxg1 {[%clk 0:00:28]}  Qd1+ {[%clk 0:00:13]} 57. Kf2 {[%clk 0:00:28]}  Qd2+ {[%clk 0:00:13]} 58. Kg1 {[%clk 0:00:28]}  Qd4+ {[%clk 0:00:13]} 59. Kf1 {[%clk 0:00:14]}  Qc4+ {[%clk 0:00:28]} 0-1


[Site "http://www.Chess.com"]

[Event "FIDE World Rapid Chess Championship 2021"]
[White "Cuenca Jimenez, Jose Fernando"]
[Black "Tologontegin, Semetey"]
[WhiteFideId "2255570"]
[BlackFideId "13800574"]
[WhiteElo "2421"]
[BlackElo "2300"]
[Result "1/2-1/2"]
[Round "03"]
[TimeControl "900+10"]
[Date "2021.12.26"]
[WhiteClock "0:09:15"]
[BlackClock "0:08:03"]

1. e4 {[%clk 0:15:36]}  c5 {[%clk 0:15:26]} 2. Nf3 {[%clk 0:15:36]}  d6 {[%clk 0:15:26]} 3. d4 {[%clk 0:15:36]}  cxd4 {[%clk 0:15:26]} 4. Nxd4 {[%clk 0:15:36]}  Nf6 {[%clk 0:15:26]} 5. Nc3 {[%clk 0:15:36]}  a6 {[%clk 0:15:26]} 6. a4 {[%clk 0:15:36]}  g6 {[%clk 0:15:54]} 7. Be2 {[%clk 0:15:50]}  Bg7 {[%clk 0:15:54]} 8. Be3 {[%clk 0:15:50]}  Nc6 {[%clk 0:15:54]} 9. Nxc6 {[%clk 0:15:50]}  bxc6 {[%clk 0:15:54]} 10. e5 {[%clk 0:15:45]}  dxe5 {[%clk 0:13:51]} 11. Qxd8+ {[%clk 0:15:51]}  Kxd8 {[%clk 0:13:51]} 12. a5 {[%clk 0:15:51]}  Nd5 {[%clk 0:13:51]} 13. O-O-O {[%clk 0:15:33]}  e6 {[%clk 0:11:30]} 14. Na4 {[%clk 0:14:03]}  Kc7 {[%clk 0:11:30]} 15. Bc5 {[%clk 0:12:46]}  Bf8 {[%clk 0:10:30]} 16. c4 {[%clk 0:11:32]}  Bxc5 {[%clk 0:10:13]} 17. Nxc5 {[%clk 0:09:11]}  Nf6 {[%clk 0:09:51]} 18. Na4 {[%clk 0:09:15]}  Rb8 {[%clk 0:08:03]} 1/2-1/2


[Site "http://www.Chess.com"]